Workbook

Sheet от 1года до 3 лет
A1: Утверждаю | H1: Согласовано
A2: Директор ООО "ФУДСОЦСЕРВИС" | H2: Руководитель дошкольной образовательной
A3: Харламова Э.Р. | H3: организации
E5: Примерное 10-дневное меню
E6: для организации питания детей в дошкольных учреждениях
E7: с 8-10,5- часовым пребыванием от 1 года до 3 лет
A8: День 1 - ый
A9: Наименование блюд и | C9: Масса | D9: Кол - во | E9: Кол - во | F9: Пищевые вещества | I9: Энергетическая | J9: витамин | K9: Сборник
A10: продуктов | C10: порции | D10: (в гр ) | E10: (в гр ) | I10: ценность | K10: рецептур
D11: брутто | E11: нетто | F11: белки | G11: жиры | H11: угл-ды | I11: Ккал | J11: С
B12: ЗАВТРАК
A13: Каша "Дружба" молочная с маслом сливочным | C13: 140/3 | F13: 4.22 | G13: 4.92 | H13: 23.38 | I13: 155.56 | J13: 0.60 | K13: ТТК №7Д
B14: Крупа рисовая | D14: 10 | E14: 10
B15: Крупа пшенная | D15: 7.5 | E15: 7.5
B16: Молоко | D16: 75 | E16: 75
B17: Вода | D17: 48 | E17: 48
B18: Сахар | D18: 2 | E18: 2
B19: соль иодированная | D19: 0.4 | E19: 0.4
B20: Масло сливочное | D20: 3 | E20: 3
A21: Кофейный напиток с молоком | C21: 180/6 | F21: 2.85 | G21: 2.41 | H21: 10.35 | I21: 74.58 | J21: 1.17 | K21: №414 Дели 2016
B22: Кофейный напиток | D22: 2.50 | E22: 2.50
B23: Сахар | D23: 6.00 | E23: 6.00
B24: Молоко | D24: 90.00 | E24: 90.00
B25: Вода | D25: 108.00 | E25: 108.00
A26: Бутерброд с маслом сливочным | C26: 25/5 | F26: 1.92 | G26: 4.36 | H26: 12.92 | I26: 98.50 | K26: №1 Дели2016
B27: Батон нарезной | D27: 25 | E27: 25
B28: Масло сливочное | D28: 5 | E28: 5
A29: Итого: | C29: 359 | F29: =F13+F21+F26 -> 8.98 | G29: =G13+G21+G26 -> 11.69 | H29: 46.65 | I29: 328.64 | J29: 1.77
B30: 2 - ой ЗАВТРАК
A31: Кисломолочный напиток | C31: 150/2 | F31: 4.35 | G31: 3.75 | H31: 8.00 | I31: 83.00 | J31: 1.05 | K31: №420 Сб дошк 2016
A32: (Кефир,ряженка,катык) | B32: кисломолочный напиток | D32: 155 | E32: 150
B33: сахар | D33: 2 | E33: 2
A34: Итого: | C34: 152 | F34: =F31 -> 4.35 | G34: =G31 -> 3.75 | H34: =H31 -> 8.00 | I34: =I31 -> 83.00 | J34: =J31 -> 1.05
B35: ОБЕД
A36: Капуста тушеная (доп. гарнир) | C36: 40 | F36: 0.81 | G36: 1.29 | H36: 3.76 | I36: 30.04 | K36: №139 сб шк 2017
B37: капуста свежая | D37: 57.00 | E37: 45.60
B38: масло растительное | D38: 1.60 | E38: 1.60
B39: Морковь | D39: 3.00 | E39: 2.40
B40: лук репчатый | D40: 3.84 | E40: 3.20
B41: томатная паста | D41: 0.96 | E41: 0.96
B42: мука пшеничная | D42: 0.40 | E42: 0.40
B43: сахарный песок | D43: 1.20 | E43: 1.20
B44: соль йодированная | D44: 0.25 | E44: 0.25
A45: Суп вермишелевый с картофелем с мясными фрикадельками | C45: 150/10 | F45: 3.61 | G45: 2.87 | H45: 10.55 | I45: 90.56 | J45: 5.19 | K45: №88 СБ дошк 2016
B46: говядина (котлетное мясо) | D46: 11.97 | E46: 11.40
B47: или фарш говяжий | D47: 11.97 | E47: 11.40
B48: Лук репчатый | D48: 1.19 | E48: 1.00
B49: Яйцо | D49: 0.96 | E49: 0.80
B50: Вода для фарша | D50: 1.00 | E50: 1.00
B51: соль иодированная | D51: 0.10 | E51: 0.10
B52: масса полуфабриката фрикаделек | E52: 14.3
B53: масса готовых фрикаделек | E53: 10
B54: Картофель | D54: 59.90 | E54: 45.00
B55: Морковь | D55: 7.50 | E55: 6.00
B56: Лук репчатый | D56: 7.14 | E56: 6.00
B57: вермишель | D57: 6.00 | E57: 6.00
B58: Масло растительное | D58: 3.00 | E58: 3.00
B59: соль иодированная | D59: 0.50 | E59: 0.50
B60: Вода | D60: 105.00 | E60: 105.00
A61: Котлеты рубленые из говядины | C61: 50 | F61: 8.42 | G61: 9.35 | H61: 8.22 | I61: 150.76 | K61: СБ дошкольн. №299, 2016
B62: говядина (котлетное мясо) | D62: 36.57 | E62: 35.00
B63: или фарш говяжий | D63: 36.57 | E63: 35.00
B64: Лук репчатый | D64: 10.40 | E64: 8.75
B65: Хлеб пшеничный | D65: 8.13 | E65: 8.13
B66: вода питьевая | D66: 10.00 | E66: 10.00
B67: сухари панировочные | D67: 2.80 | E67: 2.80
B68: соль иодированная | D68: 0.40 | E68: 0.40
B69: масса полуфабриката | E69: 62.00
B70: масло растительное | D70: 0.60 | E70: 0.60
A71: Пюре Картофельное | C71: 120 | F71: 2.45 | G71: 3.84 | H71: 16.35 | I71: 109.80 | J71: 14.53 | K71: № 339 СБ дошк 2016
B72: Картофель | D72: 136.80 | E72: 102.60
B73: Молоко | D73: 18.96 | E73: 18.00
B74: Масло сливочное | D74: 4.20 | E74: 4.20
B75: соль иодированная | D75: 0.45 | E75: 0.45
A76: Напиток из сухофруктов | C76: 150 | F76: 0.50 | G76: 0.07 | H76: 14.00 | I76: 60 | J76: 0.54 | K76: №394 Сб дошк 2016
B77: сухофрукты | D77: 12.75 | E77: 12.50
B78: Сахар | D78: 5.00 | E78: 5.00
B79: вода | D79: 152.00 | E79: 152.00
A80: Хлеб ржаной | C80: 35 | D80: 35 | E80: 35 | F80: 2.31 | G80: 0.42 | H80: 13.85 | I80: 69.23 | K80: табл 6 стр 144,Дели + 2012
A81: Итого: | C81: =C80+C76+C71+C61+160+C36 -> 555 | F81: =F80+F76+F71+F61+F45+F36 -> 18.10 | G81: =G80+G76+G71+G61+G45+G36 -> 17.84 | H81: 66.73 | I81: 510.39 | J81: 20.26
B82: ПОЛДНИК
A83: Омлет натуральный | C83: 130 | F83: 12.08 | G83: 21.52 | H83: 2.29 | I83: 251.03 | J83: 0.25 | K83: №229,сб дошк2016
B84: яйцо | D84: 96.00 | E84: 80.00
B85: молоко | D85: 55.00 | E85: 55.00
B86: масса омлетной смеси | E86: 135.00
B87: масло сливочное | D87: 2.00 | E87: 2.00
B88: соль иодированная | D88: 0.30 | E88: 0.30
B89: масса готового омлета | E89: 130.00
A90: Хлеб пшеничный | C90: 15 | D90: 15.00 | E90: 15.00 | F90: 1.14 | G90: 0.12 | H90: 7.38 | I90: 35.25 | J90: 0.00 | K90: табл 6 стр 134,Дели + 2012
A91: Чай с сахаром | C91: 150/5 | F91: 0.06 | G91: 0.02 | H91: 5.01 | I91: 19.95 | J91: 0.03 | K91: №410,411 Дели2016
B92: чай весовой | D92: 0.4 | E92: 0.4
B93: Сахар | D93: 5 | E93: 5
B94: Вода | D94: 150 | E94: 150
A95: Кондитерское изделие | B95: вафли | C95: 20 | D95: 20.00 | E95: 20.00 | F95: 0.75 | G95: 6.10 | H95: 12.50 | I95: 108.50 | K95: табл 10 стр 202, Дели +, 2012
A96: Фрукты свежие | C96: 100 | D96: 100 | E96: 100 | F96: 0.40 | G96: 0.40 | H96: 9.80 | I96: 47.00 | J96: 10.00 | K96: №386 СБ
A97: (яблоки,или апельсин, или банан,или мандарин) | K97: дошк.2016
A98: Итого: | C98: =C96+C95+155+C90+C83 -> 420 | F98: =F96+F95+F91+F90+F83 -> 14.43 | G98: =G96+G95+G91+G90+G83 -> 28.16 | H98: 36.98 | I98: 461.73 | J98: 10.28
A99: ВСЕГО: | C99: =C29+C34+C81+C98 -> 1486 | F99: =F29+F34+F81+F98 -> 45.87 | G99: =G29+G34+G81+G98 -> 61.44 | H99: =H29+H34+H81+H98 -> 158.36 | I99: =I29+I34+I81+I98 -> 1383.76 | J99: =J29+J34+J81+J98 -> 33.36
A101: День 2- ой
A102: Наименование блюд и | C102: Масса | D102: Кол - во | E102: Кол - во | F102: Пищевые вещества | I102: Энергетическая | J102: Витамин | K102: Сборник
A103: продуктов | C103: порции | D103: (в гр ) | E103: (в гр ) | I103: ценность | K103: рецептур
D104: брутто | E104: нетто | F104: белки | G104: жиры | H104: угл-ды | I104: Ккал | J104: С
B105: ЗАВТРАК
A106: Каша полбяная молочная с маслом сливочным | C106: 140/3 | F106: 3.76 | G106: 6.13 | H106: 22.96 | I106: 162.00 | J106: 0.67 | K106: ТТК №1Д
B107: Крупа полбяная | D107: 18 | E107: 18
B108: Молоко | D108: 70 | E108: 70
B109: вода | D109: 53 | E109: 53
B110: Сахар | D110: 2 | E110: 2
B111: соль иодированная | D111: 0.4 | E111: 0.4
B112: Масло сливочное | D112: 3 | E112: 3
A113: Какао с молоком | C113: 180/6 | F113: 3.67 | G113: 3.19 | H113: 10.87 | I113: 90.78 | J113: 1.43 | K113: №416 Дели2016
B114: Какао-порошок | D114: 2.00 | E114: 2.00
B115: Сахар | D115: 6.00 | E115: 6.00
B116: Молоко | D116: 110.00 | E116: 110.00
B117: Вода | D117: 80.00 | E117: 80.00
A118: Бутерброд с сыром, маслом сливочным | C118: 25/5/5 | F118: 2.53 | G118: 5.69 | H118: 12.92 | I118: 115.67 | J118: 0.07 | K118: №3 сб дошк2016
B119: Батон нарезной | D119: 25 | E119: 25
B120: Сыр | D120: 5.1 | E120: 5
B121: Масло сливочное | D121: 5 | E121: 5
A122: Итого: | C122: 364 | F122: =F106+F113+F118 -> 9.96 | G122: =G106+G113+G118 -> 15.01 | H122: 46.75 | I122: 368.45 | J122: 2.17
B123: 2 - ой ЗАВТРАК
A124: Сок (нектар) в инд упаковке | C124: 200 | D124: 200 | E124: 200 | F124: 1.00 | H124: 20.20 | I124: 84.44 | J124: 4.00 | K124: №418 Дели2016
A125: Итого: | C125: 200 | F125: =F124 -> 1.00 | G125: =G124 -> 0.00 | H125: =H124 -> 20.20 | I125: =I124 -> 84.44 | J125: =J124 -> 4.00
B126: ОБЕД
A127: Салат из отварной свеклы с маслом растительным | C127: 40 | F127: 0.57 | G127: 2.44 | H127: 3.34 | I127: 37.56 | J127: 2.67 | K127: №34 сб дошк 2016
B128: свекла | D128: 48.64 | E128: 38.00
B129: масло растительное | D129: 2.40 | E129: 2.40
A130: Борщ со свежей капустой, картофелем на курином бульоне, со сметаной | C130: 150/5 | F130: 1.26 | G130: 4.00 | H130: 6.81 | I130: 73.58 | J130: 6.43 | K130: №63,сбдошк2016
B131: Капуста свежая | D131: 15.0 | E131: 12.0
B132: Картофель | D132: 15.96 | E132: 12.0
B133: Морковь | D133: 7.5 | E133: 6.0
B134: Лук репчатый | D134: 7.14 | E134: 6.0
B135: Свекла | D135: 30.72 | E135: 24.0
B136: Сахар | D136: 1.8 | E136: 1.8
B137: Масло растительное | D137: 3.0 | E137: 3.0
B138: соль иодированная | D138: 0.5 | E138: 0.5
B139: Бульон | D139: 120 | E139: 120.0
B140: Сметана | D140: 5.0 | E140: 5.0
B141: Томатная паста | D141: 0.8 | E141: 0.8
A142: Плов из отварной птицы | C142: 150 | F142: 12.71 | G142: 7.85 | H142: 26.80 | I142: 229.00 | J142: 4.52 | K142: №321 сбдошк2016
B143: цыплята-бройлеры с/м | D143: 58.50 | E143: 55.2
B144: масса отварной птицы | E144: 24.0
B145: масло сливочное | D145: 5.0 | E145: 5.0
B146: Лук репчатый | D146: 8.9 | E146: 7.5
B147: Морковь | D147: 12.5 | E147: 10.0
B148: Крупа рисовая | D148: 32.0 | E148: 32.0
B149: вода | D149: 65.0 | E149: 65.0
B150: соль иодированная | D150: 0.5 | E150: 0.5
B151: масса гарнира | E151: 126.0
A152: Компот из свежих яблок | C152: 150 | F152: 0.12 | G152: 0.12 | H152: 20.91 | I152: 85.95 | J152: 2.85 | K152: 342 сб шк 2017
B153: яблоки свежие | D153: 28.50 | E153: 25.00
B154: сахар | D154: 5.00 | E154: 5.00
B155: вода | D155: 152.00 | E155: 152.00
A156: Хлеб ржаной | C156: 35 | D156: 35 | E156: 35 | F156: 2.31 | G156: 0.42 | H156: 13.85 | I156: 69.23 | K156: табл 6 стр 144,Дели + 2012
A157: Итого: | C157: =C156+C152+C142+155+C127 -> 530 | F157: =F156+F152+F142+F130+F127 -> 16.97 | G157: =G156+G152+G142+G130+G127 -> 14.83 | H157: 71.70 | I157: 495.32 | J157: 16.47
B158: ПОЛДНИК
A159: Запеканка творожная с молоком сгущенным | C159: 110/20 | F159: 20.73 | G159: 16.98 | H159: 29.49 | I159: 353.40 | J159: 0.49 | K159: № 251 сб дошк 2016
B160: Творог | D160: 103.2 | E160: 101.2
B161: крупа манная | D161: 6.6 | E161: 6.6
B162: Яйцо | D162: 5.28 | E162: 4.4
B163: Сахар | D163: 8.8 | E163: 8.8
B164: Сметана | D164: 4.4 | E164: 4.4
B165: Масло сливочное | D165: 4.4 | E165: 4.4
B166: Сухари панировочные | D166: 4.4 | E166: 4.4
B167: соль иодированная | D167: 0.55 | E167: 0.55
B168: молоко сгущенное | D168: 20.40 | E168: 20.00
A169: Чай с сахаром и лимоном | C169: 150/5/5 | F169: 0.10 | G169: 0.02 | H169: 5.18 | I169: 21.78 | J169: 2.24 | K169: №412 Дели2016
B170: чай весовой | D170: 0.4 | E170: 0.4
B171: Сахар | D171: 5 | E171: 5
B172: лимон | D172: 5.55 | E172: 5
B173: Вода | D173: 150.0 | E173: 150.0
A174: Итого: | C174: =150+10+110+20 -> 290 | F174: =F169+F159 -> 20.83 | G174: =G169+G159 -> 17.00 | H174: 34.67 | I174: 375.18 | J174: 2.73
A175: ВСЕГО: | C175: =C122+C125+C157+C174 -> 1384 | F175: =F122+F125+F157+F174 -> 48.76 | G175: =G122+G125+G157+G174 -> 46.84 | H175: =H122+H125+H157+H174 -> 173.32 | I175: =I122+I125+I157+I174 -> 1323.39 | J175: =J122+J125+J157+J174 -> 25.37
A177: День 3 - ий
A178: Наименование блюд и | C178: Масса | D178: Кол - во | E178: Кол - во | F178: Пищевые вещества | I178: Энергетическая | J178: Витамин | K178: Сборник
A179: продуктов | C179: порции | D179: (в гр ) | E179: (в гр ) | I179: ценность | K179: рецептур
D180: брутто | E180: нетто | F180: белки | G180: жиры | H180: угл-ды | I180: Ккал | J180: С
B181: ЗАВТРАК
A182: Каша ячневая молочная с маслом сливочным | C182: 140/4 | F182: 4.71 | G182: 5.52 | H182: 23.38 | I182: 178.07 | K182: ТТК №10Д
B183: Крупа ячневая | D183: 17.5 | E183: 17.5
B184: Молоко | D184: 70 | E184: 70
B185: Вода | D185: 53 | E185: 53
B186: Сахар | D186: 2 | E186: 2
B187: соль иодированная | D187: 0.4 | E187: 0.4
B188: Масло сливочное | D188: 4 | E188: 4
A189: Чай с молоком, сахаром | C189: 180/6 | F189: 3.03 | G189: 2.40 | H189: 10.48 | I189: 75.76 | J189: 1.38 | K189: № 413 сб дошк 2016
B190: чай весовой | D190: 0.45 | E190: 0.45
B191: Сахар | D191: 6 | E191: 6
B192: Молоко | D192: 92 | E192: 90
B193: Вода | D193: 90 | E193: 90
A194: Бутерброд с маслом сливочным | C194: 25/5 | F194: 1.92 | G194: 4.36 | H194: 12.92 | I194: 98.50 | K194: №1 Дели2016
B195: Батон нарезной | D195: 25 | E195: 25
B196: Масло сливочное | D196: 5 | E196: 5
A197: Итого: | C197: 360 | F197: =F194+F189+F182 -> 9.66 | G197: =G194+G189+G182 -> 12.27 | H197: 46.78 | I197: 352.33 | J197: 1.38
B198: 2 - ой ЗАВТРАК
A199: Кисломолочный напиток | C199: 150 | F199: 4.35 | G199: 3.75 | H199: 6.30 | I199: 76.00 | J199: 0.45 | K199: №420 Сб дошк 2016
A200: (кефир,ряженка,катык) | B200: кисломолочный напиток | D200: 155 | E200: 150
A201: Кондитерское изделие | B201: печенье | C201: 20 | D201: 20.00 | E201: 20.00 | F201: 1.50 | G201: 1.96 | H201: 14.88 | I201: 83.40 | K201: табл 6 стр 136,Ддели +,2012
A202: Итого: | C202: 170 | F202: =F199+F201 -> 5.85 | G202: =G199+G201 -> 5.71 | H202: 21.18 | I202: 159.40 | J202: 0.45
B203: ОБЕД
... 719 more rows

Sheet от 3 до 7 лет
A1: Утверждаю | H1: Согласовано
A2: Директор ООО "ФУДСОЦСЕРВИС" | H2: Заведующий МБДОУ " Кавзияковский детский сад"Кояшкай"
A3: Харламова Э.Р.
I4: Р.А.Зиатдинова
C5: 10-дневное меню
C6: для организации питания детей в дошкольных учреждениях
C7: с 8 - 10,5 часовым пребыванием от 3 до 7 лет
A9: День 1 - ый
A10: Наименование блюд и | C10: Масса | D10: Кол - во | E10: Кол - во | F10: Пищевые вещества | I10: Энергетическая | J10: Витамин | K10: Сборник рецептур
A11: продуктов | C11: порции | D11: (в гр ) | E11: (в гр ) | I11: ценность
D12: брутто | E12: нетто | F12: белки | G12: жиры | H12: угл-ды | I12: Ккал | J12: С
B13: ЗАВТРАК
A14: Каша "Дружба" молочная с маслом сливочным | C14: 180/5 | F14: 5.36 | G14: 9.85 | H14: 29.49 | I14: 229.05 | J14: 0.86 | K14: ТТК №7Д
B15: Крупа рисовая | D15: 13.50 | E15: 13.50
B16: Крупа пшенная | D16: 10.00 | E16: 10.00
B17: Молоко | D17: 90.00 | E17: 90.00
B18: Вода | D18: 68.00 | E18: 68.00
B19: Сахар | D19: 2.50 | E19: 2.50
B20: соль иодированная | D20: 0.50 | E20: 0.50
B21: Масло сливочное | D21: 5 | E21: 5
A22: Кофейный напиток с молоком | C22: 180/6 | F22: 2.85 | G22: 2.41 | H22: 10.35 | I22: 74.58 | J22: 1.17 | K22: №414 Дели 2016
B23: Кофейный напиток | D23: 2.50 | E23: 2.50
B24: Сахар | D24: 6.00 | E24: 6.00
B25: Молоко | D25: 90.00 | E25: 90.00
B26: Вода | D26: 108.00 | E26: 108.00
A27: Бутерброд с маслом сливочным | C27: 30/5 | F27: 2.29 | G27: 4.50 | H27: 15.49 | I27: 111.68 | K27: №1 Дели2010
B28: Батон нарезной | D28: 30.00 | E28: 30.00
B29: Масло сливочное | D29: 5.00 | E29: 5.00
A30: Итого: | C30: 406 | F30: =F14+F22+F27 -> 10.50 | G30: =G14+G22+G27 -> 16.76 | H30: =H14+H22+H27 -> 55.33 | I30: =I14+I22+I27 -> 415.31 | J30: =J14+J22+J27 -> 2.03
B31: 2 - ой ЗАВТРАК
A32: Кисломолочный напиток | C32: 180/3 | F32: 5.22 | G32: 4.50 | H32: 10.19 | I32: 102.00 | J32: 1.26 | K32: №420 СБ дошк 2016
A33: (Кефир,ряженка,катык) | B33: кисломолочный напиток | D33: 185.00 | E33: 180.00
B34: сахар | D34: 3.00 | E34: 3.00
A35: Итого: | C35: 183 | F35: =F32 -> 5.22 | G35: =G32 -> 4.50 | H35: =H32 -> 10.19 | I35: =I32 -> 102.00 | J35: =J32 -> 1.26
B36: ОБЕД
A37: Капуста тушеная (доп. гарнир) | C37: 60 | F37: 1.24 | G37: 1.94 | H37: 5.65 | I37: 45.06 | K37: №139 сб шк 2017
B38: капуста свежая | D38: 85.50 | E38: 68.40
B39: масло растительное | D39: 2.40 | E39: 2.40
B40: Морковь | D40: 4.50 | E40: 3.60
B41: лук репчатый | D41: 5.76 | E41: 4.80
B42: томатная паста | D42: 1.44 | E42: 1.44
B43: мука пшеничная | D43: 0.60 | E43: 0.60
B44: сахарный песок | D44: 1.80 | E44: 1.80
B45: соль йодированная | D45: 0.35 | E45: 0.35
A46: Суп вермишелевый с картофелем с мясными фрикадельками | C46: 180/10 | F46: 4.93 | G46: 3.80 | H46: 12.68 | I46: 114.56 | J46: 6.18 | K46: №88,сб дошк2016
B47: говядина (котлетное мясо) | D47: 11.97 | E47: 11.40
B48: или фарш говяжий | D48: 11.97 | E48: 11.40
B49: Лук репчатый | D49: 1.19 | E49: 1.00
B50: Яйцо | D50: 0.96 | E50: 0.80
B51: Вода для фарша | D51: 1.00 | E51: 1.00
B52: соль иодированная | D52: 0.10 | E52: 0.10
B53: Масса полуфабриката | E53: 14.30
B54: масса готовых фрикаделек | E54: 10.00
B55: Картофель | D55: 79.80 | E55: 60.00
B56: Морковь | D56: 10.00 | E56: 8.00
B57: Лук репчатый | D57: 9.52 | E57: 8.00
B58: вермишель | D58: 8.00 | E58: 8.00
B59: Масло растительное | D59: 4.00 | E59: 4.00
B60: соль иодированная | D60: 0.70 | E60: 0.70
B61: Вода | D61: 140.00 | E61: 140.00
A62: Котлеты рубленые из говядины | C62: 70 | F62: 11.79 | G62: 13.09 | H62: 11.51 | I62: 211.06 | J62: 0.84 | K62: СБ дошкольн. №299, 2016
B63: говядина (котлетное мясо) | D63: 51.16 | E63: 49.00
B64: или фарш говяжий | D64: 51.16 | E64: 49.00
B65: Лук репчатый | D65: 14.64 | E65: 12.30
B66: Хлеб пшеничный | D66: 11.00 | E66: 11.00
B67: вода питьевая | D67: 14.70 | E67: 14.70
B68: сухари панировочные | D68: 4.00 | E68: 4.00
B69: соль иодированная | D69: 0.70 | E69: 0.70
B70: масса полуфабриката | E70: 84.00
B71: масло растительное | D71: 0.80 | E71: 0.80
A72: Пюре Картофельное | C72: 140 | F72: 2.86 | G72: 4.48 | H72: 19.08 | I72: 128.10 | J72: 16.96 | K72: № 339 СБ дошк 2016
B73: Картофель | D73: 159.60 | E73: 119.70
B74: Молоко | D74: 22.12 | E74: 21.00
B75: Масло сливочное | D75: 5.00 | E75: 5.00
B76: соль иодированная | D76: 0.52 | E76: 0.52
A77: Напиток из сухофруктов | C77: 180 | F77: 0.60 | G77: 0.08 | H77: 16.81 | I77: 72 | J77: 0.65 | K77: №394 Сб дошк 2016
B78: сухофрукты | D78: 15.30 | E78: 15.00
B79: Сахар | D79: 6.00 | E79: 6.00
B80: вода | D80: 183.00 | E80: 183.00
A81: Хлеб ржаной | C81: 45 | D81: 45.00 | E81: 45.00 | F81: 2.97 | G81: 0.54 | H81: 17.84 | I81: 89.19 | K81: табл 6 стр 144,Дели + 2012
A82: Итого: | C82: =C81+C77+C72+C62+180+10+C37 -> 685 | F82: =F81+F77+F72+F62+F46+F37 -> 24.39 | G82: =G81+G77+G72+G62+G46+G37 -> 23.93 | H82: 83.57 | I82: 659.49 | J82: 24.63
B83: ПОЛДНИК
A84: Омлет натуральный | C84: 130 | F84: 12.08 | G84: 21.52 | H84: 2.29 | I84: 251.03 | J84: 0.25 | K84: №229,сб дошк2016
B85: яйцо | D85: 96.00 | E85: 80.00
B86: молоко | D86: 55.00 | E86: 55.00
B87: масса омлетной смеси | E87: 135.00
B88: масло сливочное | D88: 2.00 | E88: 2.00
B89: соль иодированная | D89: 0.30 | E89: 0.30
B90: масса готового омлета | E90: 130.00
A91: Хлеб пшеничный | C91: 25 | D91: 25.00 | E91: 25.00 | F91: 1.90 | G91: 0.20 | H91: 12.30 | I91: 58.75 | J91: 0.00 | K91: табл 6 стр 134,Дели + 2012
A92: Чай с сахаром | C92: 180/6 | F92: 0.06 | G92: 0.02 | H92: 6.01 | I92: 23.94 | J92: 0.03 | K92: №410,411 Дели2016
B93: чай весовой | D93: 0.45 | E93: 0.45
B94: сахар | D94: 6.00 | E94: 6.00
B95: Вода | D95: 180.00 | E95: 180.00
A96: Кондитерское изделие | B96: вафли | C96: 20 | D96: 20.00 | E96: 20.00 | F96: 0.75 | G96: 6.10 | H96: 12.50 | I96: 108.50 | K96: табл 10 стр 202, Дели +, 2012
A97: Фрукты свежие | C97: 100 | D97: 100 | E97: 100 | F97: 0.40 | G97: 0.40 | H97: 9.80 | I97: 47.00 | J97: 10.00 | K97: №386 СБ
A98: (яблоки,или апельсин, или банан,или мандарин) | K98: дошк.2016
A99: Итого: | C99: =C97+C96+186+C91+C84 -> 461 | F99: =F97+F96+F92+F91+F84 -> 15.19 | G99: =G97+G96+G92+G91+G84 -> 28.24 | H99: 42.90 | I99: 489.22 | J99: 10.28
A100: ВСЕГО: | C100: =C30+C35+C82+C99 -> 1735 | F100: =F30+F35+F82+F99 -> 55.31 | G100: =G30+G35+G82+G99 -> 73.43 | H100: =H30+H35+H82+H99 -> 192.00 | I100: =I30+I35+I82+I99 -> 1666.02 | J100: =J30+J35+J82+J99 -> 38.20
A102: День 2- ой
A103: Наименование блюд и | C103: Масса | D103: Кол - во | E103: Кол - во | F103: Пищевые вещества | I103: Энергетическая | J103: Витамин | K103: Сборник
A104: продуктов | C104: порции | D104: (в гр ) | E104: (в гр ) | I104: ценность | K104: рецептур
D105: брутто | E105: нетто | F105: белки | G105: жиры | H105: угл-ды | I105: Ккал | J105: С
B106: ЗАВТРАК
A107: Каша полбяная молочная с маслом сливочным | C107: 180/3 | F107: 4.81 | G107: 7.85 | H107: 29.38 | I107: 207.32 | J107: 0.86 | K107: ТТК №1Д
B108: Крупа полбяная | D108: 22.50 | E108: 22.50
B109: Молоко | D109: 90.00 | E109: 90.00
B110: вода | D110: 68.00 | E110: 68.00
B111: Сахар | D111: 2.50 | E111: 2.50
B112: соль иодированная | D112: 0.50 | E112: 0.50
B113: Масло сливочное | D113: 3.00 | E113: 3.00
A114: Какао с молоком | C114: 180/6 | F114: 3.67 | G114: 3.19 | H114: 10.87 | I114: 90.78 | J114: 1.43 | K114: №416 Дели2016
B115: Какао-порошок | D115: 2.00 | E115: 2.00
B116: Сахар | D116: 6.00 | E116: 6.00
B117: Молоко | D117: 110.00 | E117: 110.00
B118: Вода | D118: 80.00 | E118: 80.00
A119: Бутерброд с сыром, маслом сливочным | C119: 30/5/5 | F119: 3.61 | G119: 5.83 | H119: 15.49 | I119: 128.77 | J119: 0.07 | K119: №3 сб дошк2016
B120: Батон нарезной | D120: 30.00 | E120: 30.00
B121: Сыр | D121: 5.10 | E121: 5.00
B122: Масло сливочное | D122: 5.00 | E122: 5.00
A123: Итого: | C123: 409 | F123: =SUM(F107:F122) -> 12.09 | G123: =SUM(G107:G122) -> 16.87 | H123: =SUM(H107:H122) -> 55.74 | I123: =SUM(I107:I122) -> 426.87 | J123: =SUM(J107:J122) -> 2.36
B124: 2 - ой ЗАВТРАК
A125: Сок (нектар) разливной | C125: 200 | D125: 200 | E125: 200 | F125: 1.00 | H125: 20.20 | I125: 84.44 | J125: 4.00 | K125: №418 Дели2016
A126: Итого: | C126: 200 | F126: =F125 -> 1.00 | G126: =G125 -> 0.00 | H126: =H125 -> 20.20 | I126: =I125 -> 84.44 | J126: =J125 -> 4.00
B127: ОБЕД
A128: Салат из отварной свеклы с маслом растительным | C128: 60 | F128: 0.86 | G128: 3.66 | H128: 5.01 | I128: 56.34 | J128: 4.01 | K128: №34 сб дошк 2016
B129: свекла | D129: 72.96 | E129: 57.00
B130: масло растительное | D130: 3.60 | E130: 3.60
A131: Борщ со свежей капустой, картофелем на курином бульоне, со сметаной | C131: 180/7 | F131: 1.50 | G131: 4.77 | H131: 8.12 | I131: 87.64 | J131: 7.71 | K131: №63,сбдошк2016
B132: Капуста свежая | D132: 18.75 | E132: 15.00
B133: Картофель | D133: 19.95 | E133: 15.00
B134: Морковь | D134: 12.50 | E134: 10.00
B135: Лук репчатый | D135: 9.60 | E135: 8.00
B136: Свекла | D136: 38.40 | E136: 30.00
B137: Сахар | D137: 1.80 | E137: 1.80
B138: Томат-паста | D138: 1.00 | E138: 1.00
B139: Масло растительное | D139: 3.60 | E139: 3.60
B140: соль иодированная | D140: 0.80 | E140: 0.80
B141: Бульон | D141: 140.00 | E141: 140.00
B142: Сметана | D142: 7.00 | E142: 7.00
A143: Плов из отварной птицы | C143: 200 | F143: 11.19 | G143: 10.93 | H143: 31.80 | I143: 282.55 | J143: 0.18 | K143: №321 сбдошк2016
B144: цыплята-бройлеры с/м | D144: 78.00 | E144: 73.6
B145: масса отварной птицы | E145: 32.0
B146: масло сливочное | D146: 8.0 | E146: 8.0
B147: Лук репчатый | D147: 11.9 | E147: 10.00
B148: Морковь | D148: 16.3 | E148: 13.00
B149: Крупа рисовая | D149: 55.0 | E149: 55.0
B150: вода | D150: 86.0 | E150: 86.0
B151: соль иодированная | D151: 0.8 | E151: 0.8
B152: масса гарнира | E152: 168.0
A153: Компот из свежих яблок | C153: 180 | F153: 0.14 | G153: 0.14 | H153: 25.09 | I153: 103.14 | J153: 0.81 | K153: 342 сб шк 2017
B154: яблоки свежие | D154: 34.00 | E154: 30.00
B155: сахар | D155: 6.00 | E155: 6.00
B156: вода | D156: 183.00 | E156: 183.00
A157: Хлеб ржаной | C157: 45 | D157: 45.00 | E157: 45.00 | F157: 2.97 | G157: 0.54 | H157: 17.84 | I157: 89.19 | K157: табл 6 стр 144,Дели + 2012
A158: Итого: | C158: =C157+C153+C143+187+C128 -> 672 | F158: =F157+F153+F143+F131+F128 -> 16.66 | G158: =G157+G153+G143+G131+G128 -> 20.04 | H158: 87.86 | I158: 618.86 | J158: 12.71
B159: ПОЛДНИК
A160: Запеканка творожная с молоком сгущенным | C160: 130/20 | F160: 24.20 | G160: 20.06 | H160: 32.78 | I160: 408.20 | J160: 0.54 | K160: №251, сбдошк 2016
B161: Творог | D161: 121.55 | E161: 119.20
B162: Крупа манная | D162: 7.80 | E162: 7.80
B163: Яйцо | D163: 6.50 | E163: 5.42
B164: Сахар | D164: 10.40 | E164: 10.40
B165: Сметана | D165: 5.20 | E165: 5.20
B166: Масло сливочное | D166: 5.20 | E166: 5.20
B167: Сухари панировочные | D167: 5.20 | E167: 5.20
B168: соль иодированная | D168: 0.65 | E168: 0.65
B169: молоко сгущенное | D169: 20.40 | E169: 20.00
A170: Чай с сахаром и лимоном | C170: 180/6/7 | F170: 0.13 | G170: 0.03 | H170: 6.23 | I170: 26.48 | J170: 2.83 | K170: №412 Дели2016
B171: чай весовой | D171: 0.45 | E171: 0.45
B172: Сахар | D172: 6.00 | E172: 6.00
B173: лимон | D173: 8.00 | E173: 7.00
B174: Вода | D174: 180.00 | E174: 180.00
A175: Итого: | C175: =180+6+7+130+20 -> 343 | F175: =F170+F160 -> 24.33 | G175: =G170+G160 -> 20.09 | H175: 39.01 | I175: 434.68 | J175: 3.37
A176: ВСЕГО: | C176: =C123+C126+C158+C175 -> 1624 | F176: =F123+F126+F158+F175 -> 54.07 | G176: =G123+G126+G158+G175 -> 57.00 | H176: =H123+H126+H158+H175 -> 202.81 | I176: =I123+I126+I158+I175 -> 1564.85 | J176: =J123+J126+J158+J175 -> 22.44
A178: День 3 - ий
A179: Наименование блюд и | C179: Масса | D179: Кол - во | E179: Кол - во | F179: Пищевые вещества | I179: Энергетическая | J179: Витамин | K179: Сборник
A180: продуктов | C180: порции | D180: (в гр ) | E180: (в гр ) | I180: ценность | K180: рецептур
D181: брутто | E181: нетто | F181: белки | G181: жиры | H181: угл-ды | I181: Ккал | J181: С
B182: ЗАВТРАК
A183: Каша ячневая молочная с маслом сливочным | C183: 180/5 | F183: 6.06 | G183: 6.99 | H183: 30.07 | I183: 228.00 | K183: ТТК №10Д
B184: Крупа ячневая | D184: 22.50 | E184: 22.50
B185: Молоко | D185: 90.00 | E185: 90.00
B186: Вода | D186: 68.00 | E186: 68.00
B187: Сахар | D187: 2.50 | E187: 2.50
B188: соль иодированная | D188: 0.50 | E188: 0.50
B189: Масло сливочное | D189: 5.00 | E189: 5.00
A190: Чай с молоком, сахаром | C190: 180/6 | F190: 3.03 | G190: 2.40 | H190: 10.48 | I190: 75.76 | J190: 1.38 | K190: № 413 сб дошк 2016
B191: чай весовой | D191: 0.45 | E191: 0.45
B192: Сахар | D192: 6 | E192: 6
B193: Молоко | D193: 92 | E193: 90
B194: Вода | D194: 90 | E194: 90
A195: Бутерброд с маслом сливочным | C195: 30/5 | F195: 2.29 | G195: 4.50 | H195: 15.49 | I195: 111.68 | K195: №1 Дели2010
B196: Батон нарезной | D196: 30.00 | E196: 30.00
B197: Масло сливочное | D197: 5.00 | E197: 5.00
A198: Итого: | C198: 406 | F198: =F195+F190+F183 -> 11.38 | G198: =G195+G190+G183 -> 13.89 | H198: =H195+H190+H183 -> 56.04 | I198: =I195+I190+I183 -> 415.44 | J198: =J195+J190+J183 -> 1.38
B199: 2 - ой ЗАВТРАК
A200: Кисломолочный напиток | C200: 180 | F200: 5.22 | G200: 4.50 | H200: 7.56 | I200: 92.00 | J200: 0.45 | K200: №420 СБ дошк 2016
A201: (Кефир,ряженка,катык) | B201: кисломолочный напиток | D201: 185 | E201: 180
A202: Кондитерское изделие | B202: печенье | C202: 20 | D202: 20.00 | E202: 20.00 | F202: 1.50 | G202: 1.81 | H202: 14.88 | I202: 83.40 | K202: табл 6 стр 136,Ддели +,2012
A203: Итого: | C203: 200 | F203: =F200+F202 -> 6.72 | G203: =G200+G202 -> 6.31 | H203: =H200+H202 -> 22.44 | I203: =I200+I202 -> 175.40 | J203: =J200+J202 -> 0.45
... 717 more rows

Sheet Меню РОТАЦИЯ
A1: МЕНЮ-РОТАЦИЯ 8-10,5ч (10 дн)
A2: День 1 - ый | B2: День 2- ой | C2: День 3 - ий | D2: День 4 - ый | E2: День 5 - ый
A3: Наименование блюд и продуктов | B3: Наименование блюд и продуктов | C3: Наименование блюд и продуктов | D3: Наименование блюд и продуктов | E3: Наименование блюд и продуктов
A4: ЗАВТРАК
A5: Каша "Дружба" молочная с маслом сливочным | B5: Каша полбяная молочная с маслом сливочным | C5: Каша ячневая молочная с маслом сливочным | D5: Каша геркулесовая молочная с маслом сливочным | E5: Суп молочный со звездочками
A6: Кофейный напиток с молоком | B6: Какао с молоком | C6: Чай с молоком,сахаром | D6: Кофейный напиток с молоком | E6: Какао с молоком
A7: Бутерброд с маслом сливочным | B7: Бутерброд с сыром, маслом сливочным | C7: Бутерброд с маслом сливочным | D7: Бутерброд с сыром, маслом сливочным | E7: Бутерброд с маслом сливочным
A8: Итого: | B8: Итого: | C8: Итого: | D8: Итого: | E8: Итого:
A9: 2 - ой ЗАВТРАК
A10: Кисломолочный напиток с сахаром (кефир) | B10: Сок в инд упаковке/разливной | C10: Кисломолочный напиток (катык) | D10: Сок в инд упаковке/разливной | E10: Кисломолочный напиток с сахаром (кефир)
C11: Кондитерское изделие (печенье) | E11: Кондитерское изделие (вафли)
A12: Итого: | B12: Итого: | C12: Итого: | D12: Итого: | E12: Итого:
A13: ОБЕД
A14: Капуста тушеная 60-40 | B14: Салат из отварной свеклы с маслом растительным | C14: Салат из зеленого горошка к/с | D14: Салат из капусты квашенной | E14: Салат из отварной свеклы с маслом растительным
A15: Суп вермишелевый с картофелем с мясными фрикадельками | B15: Борщ со свежей капустой, картофелем на курином бульоне, со сметаной | C15: Суп картофельный с пшенной крупой на бульоне из индейки, с мясом индейки | D15: Суп гороховый с картофелем, на курином бульоне | E15: Рассольник ленинградский, с мясными фрикадельками, и со сметаной
A16: Котлеты рубленые из говядины | B16: Плов из отварной птицы | C16: Биточки рубленые из рыбы с овощами | D16: Фрикадельки из птицы | E16: Запеканка картофельная с мясом со сметанным соусом
A17: Пюре Картофельное | C17: Макаронные изделия отварные с маслом сливочным | D17: Картофель тушеный
A18: Напиток из сухофруктов | B18: Компот из свежих яблок | C18: Компот из урюка | D18: Напиток из сухофруктов | E18: Компот из изюма и яблок
A20: Хлеб ржаной | B20: Хлеб ржаной | C20: Хлеб ржаной | D20: Хлеб ржаной | E20: Хлеб ржаной
A21: Итого: | B21: Итого: | C21: Итого: | D21: Итого: | E21: Итого:
A22: ПОЛДНИК
A23: Омлет натуральный | B23: Запеканка творожная с молоком сгущенным | C23: Овощное рагу с мясом | D23: Омлет натуральный | E23: Ватрушка королевская
A24: Чай с сахаром | B24: Чай с сахаром и лимоном | C24: Напиток из шиповника | D24: Чай с сахаром | E24: Чай с сахаром и лимоном
A25: Хлеб пшеничный | C25: Хлеб пшеничный | D25: Хлеб пшеничный
A26: Кондитерское изделие (вафли) | D26: Кондитерское изделие (печенье)
A27: Фрукты свежие (яблоки) | D27: Фрукты свежие (апельсины)
A33: День 6 - ый | B33: День 7- ой | C33: День 8 - ой | D33: День 9- ый | E33: День 10 - ый
A34: Наименование блюд и продуктов | B34: Наименование блюд и продуктов | C34: Наименование блюд и продуктов | D34: Наименование блюд и продуктов | E34: Наименование блюд и продуктов
A35: ЗАВТРАК
A36: Каша пшенная молочная с маслом сливочным | B36: Каша ячневая молочная с маслом сливочным | C36: Каша манная молочная с маслом сливочным | D36: Каша пшеничная молочная с маслом сливочным | E36: Каша Геркулесовая молочная с маслом сливочным
A37: Чай с молоком,сахаром | B37: Кофейный напиток с молоком | C37: Какао с молоком | D37: Чай с молоком,сахаром | E37: Кофейный напиток с молоком
A38: Бутерброд с маслом сливочным | B38: Бутерброд с маслом сливочным | C38: Бутерброд с сыром, с маслом сливочным | D38: Бутерброд с маслом сливочным | E38: Бутерброд с сыром, с маслом сливочным
A39: Итого: | B39: Итого: | C39: Итого: | D39: Итого: | E39: Итого:
A40: 2 - ой ЗАВТРАК
A41: Сок в инд упаковке/разливной | B41: Кисломолочный напиток (ряженка) | C41: Сок в инд упаковке/разливной | D41: Кисломолочный напиток (катык) | E41: Сок в инд упаковке/разливной
B42: Кондитерское изделие (печенье) | D42: Кондитерское изделие (вафли)
A43: Итого: | B43: Итого: | C43: Итого: | D43: Итого: | E43: Итого:
A44: ОБЕД
A45: Икра кабачковая 50-30 | B45: Салат из квашенной капусты | C45: Салат из свеклы с маслом растительным | D45: Салат из овощей с яблоками 60-40 | E45: Салат из зеленого горошка к/с
A46: Суп картофельный с мясом птицы | B46: Суп-лапша домашняя на курином бульоне | C46: Щи со свежей капустой с картофелем с мясными фрикадельками,со сметаной | D46: Суп картофельный с клецками на курином бульоне | E46: Суп из овощей на бульоне из индейки, со сметаной
A47: Котлеты рыбные | B47: Тефтели куриные запеченные в сметанно-томатном соусе | C47: Биточки рубленые из рыбы | D47: Биточки "Домашние" | E47: Гуляш из отварной индейки
A48: Рис отварной рассыпчатый с маслом сливочным | B48: Каша гречневая рассыпчатая с овощами с маслом сливочным | C48: Пюре Картофельное | D48: Рис отварной рассыпчатый с маслом сливочным | E48: Макаронные изделия отварные
A49: Компот из урюка | B49: Компот из свежих яблок | C49: Напиток из сухофруктов | D49: Компот из урюка | E49: Компот из изюма и яблок
A50: Хлеб ржаной | B50: Хлеб ржаной | C50: Хлеб ржаной | D50: Хлеб ржаной | E50: Хлеб ржаной
A51: Итого: | B51: Итого: | C51: Итого: | D51: Итого: | E51: Итого:
A52: УПЛОТНЕННЫЙ ПОЛДНИК
A53: Макаронные изделия с сыром | B53: Гребешок с повидлом | C53: Омлет натуральный | D53: Слойка сладкая | E53: Запеканка творожная с молоком сгущенным
A54: Чай с мармеладом | B54: Напиток из шиповника | C54: Чай с сахаром | D54: Чай с сахаром и лимоном | E54: Напиток из шиповника
C55: Кондитерское изделие (печенье)
A56: Хлеб пшеничный | B56: Фрукты свежие (яблоки) | C56: Хлеб пшеничный | D56: Фрукты свежие (апельсины)
